[Event "*** Titled Tuesday 3|2 Blitz"]
[Site "Chess.com"]
[Date "2016.10.04"]
[Round "2"]
[White "stuffings101"]
[Black "Saitama_Hero"]
[Result "1-0"]
[WhiteElo "2145"]
[BlackElo "2174"]
[TimeControl "180+2"]
[EndTime "11:27:01 PDT"]
[Termination "stuffings101 won by resignation"]

1. Nf3 {[%clk 0:02:59.4]} 1... Nf6 {[%clk 0:02:57.5]} 2. g3 {[%clk 0:02:59.5]}
2... g6 {[%clk 0:02:53.2]} 3. Bg2 {[%clk 0:03:00.6]} 3... Bg7 {[%clk 0:02:55.1]}
4. O-O {[%clk 0:03:01.6]} 4... O-O {[%clk 0:02:57]} 5. d3 {[%clk 0:03:02.7]}
5... d5 {[%clk 0:02:56.8]} 6. c3 {[%clk 0:03:03.5]} 6... c6 {[%clk 0:02:57.2]}
7. Nbd2 {[%clk 0:03:02.8]} 7... a5 {[%clk 0:02:55]} 8. a4 {[%clk 0:03:02.2]}
8... Na6 {[%clk 0:02:53.5]} 9. Re1 {[%clk 0:03:00.3]} 9... Re8 {[%clk
0:02:50.1]} 10. Qc2 {[%clk 0:03:00.9]} 10... e5 {[%clk 0:02:50]} 11. e4 {[%clk
0:03:01.4]} 11... dxe4 {[%clk 0:02:46.4]} 12. dxe4 {[%clk 0:02:57.4]} 12... Nc5
{[%clk 0:02:46.8]} 13. Bf1 {[%clk 0:02:58.3]} 13... h6 {[%clk 0:02:41.3]} 14.
Nc4 {[%clk 0:02:52.5]} 14... Qc7 {[%clk 0:02:04.8]} 15. h3 {[%clk 0:02:24.6]}
15... b5 {[%clk 0:01:55.5]} 16. axb5 {[%clk 0:02:21.5]} 16... cxb5 {[%clk
0:01:57.4]} 17. Ncd2 {[%clk 0:02:19]} 17... Bd7 {[%clk 0:01:51]} 18. Bg2 {[%clk
0:02:13.4]} 18... Red8 {[%clk 0:01:47.7]} 19. Nb3 {[%clk 0:02:13.6]} 19... Nxb3
{[%clk 0:01:36.1]} 20. Qxb3 {[%clk 0:02:14.5]} 20... a4 {[%clk 0:01:32.3]} 21.
Qc2 {[%clk 0:02:12.3]} 21... Be6 {[%clk 0:01:32.9]} 22. Bf1 {[%clk 0:02:02.1]}
22... Bb3 {[%clk 0:01:31.6]} 23. Qe2 {[%clk 0:01:59.5]} 23... Rab8 {[%clk
0:01:29.1]} 24. Nd2 {[%clk 0:01:55.6]} 24... Be6 {[%clk 0:01:27.8]} 25. Nf3
{[%clk 0:01:48.5]} 25... Nd7 {[%clk 0:01:28.1]} 26. Be3 {[%clk 0:01:47.4]} 26...
Bc4 {[%clk 0:01:27.1]} 27. Qc2 {[%clk 0:01:46.8]} 27... Bb3 {[%clk 0:01:23.2]}
28. Qc1 {[%clk 0:01:47.9]} 28... Kh7 {[%clk 0:01:21.8]} 29. Nd2 {[%clk
0:01:48.7]} 29... Be6 {[%clk 0:01:20.5]} 30. c4 {[%clk 0:01:49.1]} 30... bxc4
{[%clk 0:01:07.9]} 31. Rxa4 {[%clk 0:01:45.8]} 31... Nc5 {[%clk 0:01:00.9]} 32.
Bxc5 {[%clk 0:01:36.2]} 32... Qxc5 {[%clk 0:01:02.8]} 33. Nxc4 {[%clk
0:01:33.2]} 33... Rd4 {[%clk 0:01:03.7]} 34. Qc3 {[%clk 0:01:03]} 34... Rc8
{[%clk 0:00:56.2]} 35. b3 {[%clk 0:01:02.4]} 35... Rcd8 {[%clk 0:00:52.5]} 36.
Qf3 {[%clk 0:01:01.3]} 36... Kg8 {[%clk 0:00:47.8]} 37. Rea1 {[%clk 0:00:42.3]}
37... Qb5 {[%clk 0:00:32.2]} 38. Ra8 {[%clk 0:00:41.6]} 38... Rxa8 {[%clk
0:00:28.6]} 39. Rxa8+ {[%clk 0:00:40.6]} 39... Kh7 {[%clk 0:00:21.9]} 40. Ra1
{[%clk 0:00:38.8]} 40... Qc6 {[%clk 0:00:17.2]} 41. Re1 {[%clk 0:00:37.3]} 41...
Qb7 {[%clk 0:00:15.8]} 42. Qe2 {[%clk 0:00:37.1]} 42... Qxb3 {[%clk 0:00:15.2]}
43. Nd2 {[%clk 0:00:32.3]} 43... Qb6 {[%clk 0:00:11.4]} 44. Nf3 {[%clk
0:00:32.9]} 44... Ra4 {[%clk 0:00:12.8]} 45. Rd1 {[%clk 0:00:22.7]} 45... Bf8
{[%clk 0:00:09.6]} 46. Nxe5 {[%clk 0:00:16.1]} 46... Bc5 {[%clk 0:00:08.5]} 47.
Rd2 {[%clk 0:00:13.6]} 47... Ra1 {[%clk 0:00:07.9]} 48. Kg2 {[%clk 0:00:13.9]}
48... Bb4 {[%clk 0:00:05.4]} 49. Rb2 {[%clk 0:00:11.8]} 49... Qd4 {[%clk
0:00:03.9]} 50. Nf3 {[%clk 0:00:12.5]} 50... Qc3 {[%clk 0:00:04]} 51. Rc2 {[%clk
0:00:11.2]} 51... Qb3 {[%clk 0:00:04.1]} 52. Rb2 {[%clk 0:00:11.6]} 52... Qa3
{[%clk 0:00:04.3]} 53. Rc2 {[%clk 0:00:11.4]} 53... Bc5 {[%clk 0:00:05.8]} 54.
Qb5 {[%clk 0:00:09.5]} 54... Ba7 {[%clk 0:00:07]} 55. Qe5 {[%clk 0:00:09.1]}
55... Bxh3+ {[%clk 0:00:07.3]} 56. Kxh3 {[%clk 0:00:09.4]} 56... Qxf3 {[%clk
0:00:09.2]} 57. Bg2 {[%clk 0:00:10.1]} 57... Qh5+ {[%clk 0:00:08.4]} 58. Qxh5
{[%clk 0:00:10.6]} 58... gxh5 {[%clk 0:00:10.3]} 59. Rc7 {[%clk 0:00:11.7]}
59... Kg7 {[%clk 0:00:12.2]} 60. f4 {[%clk 0:00:11.3]} 60... Ra2 {[%clk
0:00:13.5]} 61. e5 {[%clk 0:00:12.1]} 61... Kf8 {[%clk 0:00:11]} 62. Rxf7+
{[%clk 0:00:12.8]} 62... Kxf7 {[%clk 0:00:09.4]} 63. Bd5+ {[%clk 0:00:14.3]}
63... Ke7 {[%clk 0:00:10.8]} 64. Bxa2 {[%clk 0:00:16.2]} 64... Bf2 {[%clk
0:00:12.6]} 65. Kg2 {[%clk 0:00:16.3]} 65... Be1 {[%clk 0:00:12.5]} 66. Kf3
{[%clk 0:00:17.6]} 66... h4 {[%clk 0:00:10.7]} 67. g4 {[%clk 0:00:16]} 67... Bg3
{[%clk 0:00:09.4]} 68. e6 {[%clk 0:00:15.3]} 68... Kf6 {[%clk 0:00:09.5]} 69. f5
{[%clk 0:00:16.6]} 69... Bd6 {[%clk 0:00:08.2]} 70. Bd5 {[%clk 0:00:17.5]} 70...
Be5 {[%clk 0:00:09.3]} 71. Kg2 {[%clk 0:00:17.2]} 71... Bd6 {[%clk 0:00:09.2]}
72. Kh3 {[%clk 0:00:18.4]} 72... Bg3 {[%clk 0:00:10.6]} 73. Bf3 {[%clk
0:00:18.7]} 73... Ke7 {[%clk 0:00:11.3]} 74. Be4 {[%clk 0:00:19.2]} 74... Kf6
{[%clk 0:00:12.7]} 75. Bh1 {[%clk 0:00:17.7]} 75... Ke7 {[%clk 0:00:13.9]} 76.
Be4 {[%clk 0:00:18.7]} 76... Kf6 {[%clk 0:00:15.4]} 77. Kg2 {[%clk 0:00:20.3]}
77... Ke7 {[%clk 0:00:16.4]} 78. Kf3 {[%clk 0:00:21.6]} 78... Kf6 {[%clk
0:00:18]} 79. Ke2 {[%clk 0:00:22.8]} 79... Ke7 {[%clk 0:00:19.3]} 80. Kd3 {[%clk
0:00:24.1]} 80... Kf6 {[%clk 0:00:20.6]} 81. Kd4 {[%clk 0:00:25.6]} 81... h3
{[%clk 0:00:20.4]} 82. Kd5 {[%clk 0:00:25]} 82... h2 {[%clk 0:00:22]} 83. Kc6
{[%clk 0:00:26]} 83... Ke7 {[%clk 0:00:23.5]} 84. Bh1 {[%clk 0:00:25.7]} 84...
Be5 {[%clk 0:00:22.5]} 85. Bg2 {[%clk 0:00:24.9]} 85... Bd4 {[%clk 0:00:20.6]}
86. Bd5 {[%clk 0:00:23.3]} 86... Be5 {[%clk 0:00:21.2]} 87. Bf3 {[%clk
0:00:22.8]} 87... Bd4 {[%clk 0:00:22.5]} 88. Kd5 {[%clk 0:00:21]} 88... Bf6
{[%clk 0:00:21.8]} 89. Bh1 {[%clk 0:00:18.9]} 89... Bb2 {[%clk 0:00:21.4]} 90.
Bg2 {[%clk 0:00:17.2]} 90... Bf6 {[%clk 0:00:22.8]} 91. Ke4 {[%clk 0:00:18.5]}
91... Bb2 {[%clk 0:00:22.5]} 92. Kf4 {[%clk 0:00:19.8]} 92... Bf6 {[%clk
0:00:23]} 93. Kg3 {[%clk 0:00:20.7]} 93... Be5+ {[%clk 0:00:24.1]} 94. Kh4
{[%clk 0:00:22.2]} 94... Kf6 {[%clk 0:00:24.1]} 95. Kh5 {[%clk 0:00:22.7]} 95...
Bf4 {[%clk 0:00:25.7]} 96. Bd5 {[%clk 0:00:21.4]} 96... Ke7 {[%clk 0:00:24.8]}
97. Kg6 {[%clk 0:00:21.8]} 97... Bg5 {[%clk 0:00:23.8]} 98. Bh1 {[%clk
0:00:21.5]} 98... Kd6 {[%clk 0:00:22.7]} 99. Kf7 {[%clk 0:00:21]} 1-0

[Event "*** Titled Tuesday 3|2 Blitz"]
[Site "Chess.com"]
[Date "2016.10.04"]
[Round "3"]
[White "RamonManon0g"]
[Black "Haridaskesavan"]
[Result "1-0"]
[WhiteElo "2205"]
[BlackElo "2125"]
[TimeControl "180+2"]
[EndTime "11:31:19 PDT"]
[Termination "RamonManon0g won by resignation"]

1. d4 {[%clk 0:03:01.9]} 1... Nf6 {[%clk 0:02:38]} 2. c4 {[%clk 0:03:02.3]} 2...
g6 {[%clk 0:02:39]} 3. Nc3 {[%clk 0:03:03.6]} 3... Bg7 {[%clk 0:02:40.2]} 4. e4
{[%clk 0:03:05]} 4... O-O {[%clk 0:02:40.3]} 5. Nf3 {[%clk 0:03:06.1]} 5... d6
{[%clk 0:02:40.6]} 6. Be2 {[%clk 0:03:07.5]} 6... Nbd7 {[%clk 0:02:41.6]} 7. O-O
{[%clk 0:03:08.2]} 7... e5 {[%clk 0:02:42.7]} 8. Be3 {[%clk 0:03:07.9]} 8... Ng4
{[%clk 0:02:42.5]} 9. Bg5 {[%clk 0:03:08.8]} 9... f6 {[%clk 0:02:43]} 10. Bh4
{[%clk 0:03:10]} 10... Nh6 {[%clk 0:02:44.1]} 11. dxe5 {[%clk 0:03:04.4]} 11...
Nxe5 {[%clk 0:02:39.9]} 12. Nxe5 {[%clk 0:03:05.3]} 12... dxe5 {[%clk
0:02:41.1]} 13. Qxd8 {[%clk 0:03:04.1]} 13... Rxd8 {[%clk 0:02:41.6]} 14. Nd5
{[%clk 0:03:05.1]} 14... c6 {[%clk 0:02:40]} 15. Bxf6 {[%clk 0:02:59.5]} 15...
Bxf6 {[%clk 0:02:34.9]} 16. Nxf6+ {[%clk 0:03:01.4]} 16... Kf7 {[%clk
0:02:35.5]} 17. Nxh7 {[%clk 0:03:02]} 17... Rd2 {[%clk 0:02:33.5]} 18. Bf3
{[%clk 0:02:57.3]} 18... Rxb2 {[%clk 0:02:27.4]} 19. Rfd1 {[%clk 0:02:52.7]}
19... Be6 {[%clk 0:02:25.5]} 20. Ng5+ {[%clk 0:02:53.2]} 20... Ke7 {[%clk
0:02:25.8]} 21. Nxe6 {[%clk 0:02:48.7]} 21... Kxe6 {[%clk 0:02:26.5]} 22. c5
{[%clk 0:02:50.6]} 22... Rc2 {[%clk 0:02:13]} 23. Rd6+ {[%clk 0:02:49.9]} 23...
Kf7 {[%clk 0:02:13.6]} 24. Rd7+ {[%clk 0:02:51]} 24... Kf6 {[%clk 0:02:14.7]}
25. Rad1 {[%clk 0:02:47.5]} 25... Rxc5 {[%clk 0:02:14.3]} 26. R1d6+ {[%clk
0:02:40.3]} 26... Kg5 {[%clk 0:02:15.3]} 27. g3 {[%clk 0:02:35.9]} 27... Ng8
{[%clk 0:02:08.5]} 28. Rg7 {[%clk 0:02:32.5]} 1-0

[Event "*** Titled Tuesday 3|2 Blitz"]
[Site "Chess.com"]
[Date "2016.10.04"]
[Round "3"]
[White "VMikhalevski"]
[Black "jcibarra"]
[Result "1/2-1/2"]
[WhiteElo "2468"]
[BlackElo "2695"]
[TimeControl "180+2"]
[EndTime "11:32:58 PDT"]
[Termination "Game drawn by repetition"]

1. Nf3 {[%clk 0:03:01.9]} 1... Nf6 {[%clk 0:03:00.3]} 2. g3 {[%clk 0:03:02.8]}
2... g6 {[%clk 0:03:01]} 3. b3 {[%clk 0:03:03.9]} 3... Bg7 {[%clk 0:03:01.5]} 4.
Bb2 {[%clk 0:03:05.6]} 4... O-O {[%clk 0:03:03.2]} 5. Bg2 {[%clk 0:03:06.2]}
5... d6 {[%clk 0:03:04.6]} 6. d4 {[%clk 0:03:06.8]} 6... c5 {[%clk 0:03:02.6]}
7. dxc5 {[%clk 0:02:55.6]} 7... Qa5+ {[%clk 0:03:02.8]} 8. Nbd2 {[%clk
0:02:56.2]} 8... Qxc5 {[%clk 0:03:03.4]} 9. O-O {[%clk 0:02:56.6]} 9... Nc6
{[%clk 0:02:59.9]} 10. c4 {[%clk 0:02:56.5]} 10... Qh5 {[%clk 0:03:00.2]} 11.
Re1 {[%clk 0:02:48.9]} 11... Bh3 {[%clk 0:03:00.1]} 12. e4 {[%clk 0:02:48.8]}
12... Ng4 {[%clk 0:02:52.3]} 13. Bxg7 {[%clk 0:02:45]} 13... Kxg7 {[%clk
0:02:54.2]} 14. Nh4 {[%clk 0:02:39.2]} 14... Bxg2 {[%clk 0:02:53.7]} 15. Kxg2
{[%clk 0:02:39.4]} 15... Nf6 {[%clk 0:02:50.1]} 16. Qxh5 {[%clk 0:02:38.7]}
16... Nxh5 {[%clk 0:02:50.7]} 17. f4 {[%clk 0:02:35.6]} 17... Nf6 {[%clk
0:02:49.7]} 18. Nhf3 {[%clk 0:02:36.3]} 18... Rfd8 {[%clk 0:02:48.9]} 19. Re2
{[%clk 0:02:27]} 19... Nd7 {[%clk 0:02:49.5]} 20. Nb1 {[%clk 0:02:27.1]} 20...
Nc5 {[%clk 0:02:47.6]} 21. Nc3 {[%clk 0:02:28.1]} 21... a5 {[%clk 0:02:45.1]}
22. Rb1 {[%clk 0:02:26.8]} 22... e6 {[%clk 0:02:38.7]} 23. Rd2 {[%clk 0:02:24]}
23... Kf8 {[%clk 0:02:37.3]} 24. Kf2 {[%clk 0:02:18.4]} 24... Ke7 {[%clk
0:02:33.9]} 25. Ke3 {[%clk 0:02:18.5]} 25... Ra6 {[%clk 0:02:29]} 26. a4 {[%clk
0:02:15.8]} 26... Nb4 {[%clk 0:02:25.4]} 27. Nb5 {[%clk 0:02:14.6]} 27... Raa8
{[%clk 0:02:18.8]} 28. Nc3 {[%clk 0:01:51.5]} 28... Rd7 {[%clk 0:02:19.1]} 29.
Nd4 {[%clk 0:01:49.5]} 29... Rad8 {[%clk 0:02:17.2]} 30. Ndb5 {[%clk 0:01:47.6]}
30... h5 {[%clk 0:02:08.9]} 31. h4 {[%clk 0:01:44.3]} 31... Kf8 {[%clk
0:02:06.9]} 32. Rdd1 {[%clk 0:01:35.1]} 32... Ke7 {[%clk 0:02:07.8]} 33. Rd2
{[%clk 0:01:35.4]} 33... Kf8 {[%clk 0:02:08.1]} 34. Rdd1 {[%clk 0:01:34.3]}
34... Nc2+ {[%clk 0:01:52]} 35. Kf3 {[%clk 0:01:29.4]} 35... Nb4 {[%clk
0:01:51.3]} 36. Ke3 {[%clk 0:01:28.8]} 1/2-1/2

[Event "*** Titled Tuesday 3|2 Blitz"]
[Site "Chess.com"]
[Date "2016.10.04"]
[Round "3"]
[White "agser"]
[Black "lexiel"]
[Result "1-0"]
[WhiteElo "2499"]
[BlackElo "2222"]
[TimeControl "180+2"]
[EndTime "11:33:06 PDT"]
[Termination "agser won by resignation"]

1. d4 {[%clk 0:03:02]} 1... Nf6 {[%clk 0:02:58.8]} 2. c4 {[%clk 0:03:00.7]} 2...
d6 {[%clk 0:02:59.5]} 3. Nf3 {[%clk 0:02:59.8]} 3... Bf5 {[%clk 0:02:59.9]} 4.
Nc3 {[%clk 0:02:59.8]} 4... h6 {[%clk 0:03:00.1]} 5. g3 {[%clk 0:02:57.4]} 5...
c6 {[%clk 0:03:00.3]} 6. Bg2 {[%clk 0:02:58.5]} 6... Nbd7 {[%clk 0:02:59.7]} 7.
O-O {[%clk 0:03:00.1]} 7... Qc7 {[%clk 0:02:58.5]} 8. Re1 {[%clk 0:02:56.9]}
8... e5 {[%clk 0:02:57.8]} 9. e4 {[%clk 0:02:57.6]} 9... Bg4 {[%clk 0:02:57.1]}
10. h3 {[%clk 0:02:56.6]} 10... Bh5 {[%clk 0:02:56]} 11. g4 {[%clk 0:02:55.1]}
11... Bg6 {[%clk 0:02:56.7]} 12. Nh4 {[%clk 0:02:56.7]} 12... Bh7 {[%clk
0:02:56.9]} 13. Be3 {[%clk 0:02:43.5]} 13... g5 {[%clk 0:02:51.6]} 14. Nf5
{[%clk 0:02:43.2]} 14... Bxf5 {[%clk 0:02:48.6]} 15. exf5 {[%clk 0:02:43.5]}
15... O-O-O {[%clk 0:02:48.3]} 16. Qa4 {[%clk 0:02:41.5]} 16... a6 {[%clk
0:02:45.1]} 17. b4 {[%clk 0:02:38.8]} 17... h5 {[%clk 0:02:41.1]} 18. gxh5
{[%clk 0:02:31.8]} 18... g4 {[%clk 0:02:37.6]} 19. b5 {[%clk 0:02:28.7]} 19...
gxh3 {[%clk 0:02:37.5]} 20. Bf3 {[%clk 0:02:29.7]} 20... e4 {[%clk 0:02:34.3]}
21. Nxe4 {[%clk 0:02:24.1]} 21... Nxe4 {[%clk 0:02:34.2]} 22. Bxe4 {[%clk
0:02:26]} 22... axb5 {[%clk 0:02:33.7]} 23. cxb5 {[%clk 0:02:18.6]} 23... d5
{[%clk 0:02:30.4]} 24. bxc6 {[%clk 0:02:17.2]} 24... bxc6 {[%clk 0:02:30.5]} 25.
Rab1 {[%clk 0:02:10.8]} 25... Nb8 {[%clk 0:02:28.8]} 26. Bf3 {[%clk 0:02:01.3]}
26... Bd6 {[%clk 0:02:28.2]} 27. Kh1 {[%clk 0:01:50.3]} 27... f6 {[%clk
0:02:26.5]} 28. Rec1 {[%clk 0:01:43.3]} 28... Rde8 {[%clk 0:02:20.8]} 29. Rxb8+
{[%clk 0:01:33]} 29... Kxb8 {[%clk 0:02:20.1]} 30. Rxc6 {[%clk 0:01:24.6]} 30...
Qb7 {[%clk 0:02:18.1]} 31. Rxd6 {[%clk 0:01:19.1]} 31... Rxe3 {[%clk 0:02:17]}
32. fxe3 {[%clk 0:01:06.7]} 32... Qb1+ {[%clk 0:02:15.1]} 33. Qd1 {[%clk
0:01:04.9]} 33... Qxf5 {[%clk 0:02:13.6]} 34. Qb3+ {[%clk 0:00:58.1]} 34... Kc8
{[%clk 0:02:12.9]} 35. Rc6+ {[%clk 0:00:55.2]} 1-0

[Event "*** Titled Tuesday 3|2 Blitz"]
[Site "Chess.com"]
[Date "2016.10.04"]
[Round "3"]
[White "josiwales"]
[Black "Carolina-moon"]
[Result "1-0"]
[WhiteElo "2220"]
[BlackElo "2164"]
[TimeControl "180+2"]
[EndTime "11:34:05 PDT"]
[Termination "josiwales won by checkmate"]

1. e4 {[%clk 0:03:02]} 1... c5 {[%clk 0:03:00.2]} 2. Nc3 {[%clk 0:03:02.8]} 2...
Nc6 {[%clk 0:02:57.7]} 3. g3 {[%clk 0:03:04.1]} 3... g6 {[%clk 0:02:58.1]} 4.
Bg2 {[%clk 0:03:05.5]} 4... Bg7 {[%clk 0:02:59.5]} 5. d3 {[%clk 0:03:07.2]} 5...
d6 {[%clk 0:02:57.5]} 6. Be3 {[%clk 0:03:08.3]} 6... e5 {[%clk 0:02:52.6]} 7.
Nge2 {[%clk 0:03:08.7]} 7... Nge7 {[%clk 0:02:53.2]} 8. O-O {[%clk 0:03:09.8]}
8... O-O {[%clk 0:02:53.6]} 9. f4 {[%clk 0:03:11.2]} 9... Nd4 {[%clk 0:02:48.7]}
10. h3 {[%clk 0:03:11]} 10... f5 {[%clk 0:02:45.4]} 11. Rb1 {[%clk 0:02:49.6]}
11... Rb8 {[%clk 0:02:40.4]} 12. Nd5 {[%clk 0:02:49.9]} 12... Nxd5 {[%clk
0:02:32]} 13. exd5 {[%clk 0:02:51]} 13... Nxe2+ {[%clk 0:02:04.8]} 14. Qxe2
{[%clk 0:02:44.6]} 14... Re8 {[%clk 0:02:04.3]} 15. Qd2 {[%clk 0:02:41.1]} 15...
Bd7 {[%clk 0:01:55.3]} 16. c3 {[%clk 0:02:40.1]} 16... b5 {[%clk 0:01:55.5]} 17.
Rbe1 {[%clk 0:02:38.2]} 17... Qa5 {[%clk 0:01:51.3]} 18. a3 {[%clk 0:02:33.3]}
18... b4 {[%clk 0:01:49.5]} 19. axb4 {[%clk 0:02:33.7]} 19... cxb4 {[%clk
0:01:50.1]} 20. Ra1 {[%clk 0:02:35.3]} 20... bxc3 {[%clk 0:01:41.8]} 21. bxc3
{[%clk 0:02:35.3]} 21... Qd8 {[%clk 0:01:31.3]} 22. Rxa7 {[%clk 0:02:36.5]}
22... Qc8 {[%clk 0:01:16.4]} 23. c4 {[%clk 0:02:19.7]} 23... exf4 {[%clk
0:01:14.1]} 24. gxf4 {[%clk 0:02:20.3]} 24... Rb2 {[%clk 0:01:01.7]} 25. Qc1
{[%clk 0:02:21.1]} 25... Qb8 {[%clk 0:00:57.1]} 26. Rxd7 {[%clk 0:02:19.3]}
26... Qb3 {[%clk 0:00:40.6]} 27. Rxg7+ {[%clk 0:02:20.4]} 27... Kf8 {[%clk
0:00:28.7]} 28. Rxh7 {[%clk 0:02:12]} 28... Rc2 {[%clk 0:00:28.3]} 29. Rh8+
{[%clk 0:02:09.6]} 29... Kf7 {[%clk 0:00:23]} 30. Rh7+ {[%clk 0:02:05.7]} 30...
Kg8 {[%clk 0:00:21.6]} 31. Qa1 {[%clk 0:01:50.4]} 31... Kxh7 {[%clk 0:00:22.1]}
32. Qa7+ {[%clk 0:01:50.1]} 32... Kh6 {[%clk 0:00:17]} 33. Bd4 {[%clk
0:01:50.9]} 33... Rxg2+ {[%clk 0:00:09.9]} 34. Kxg2 {[%clk 0:01:50.4]} 34...
Re2+ {[%clk 0:00:04.4]} 35. Kg1 {[%clk 0:01:49.9]} 35... Qb2 {[%clk 0:00:03.6]}
36. Qg7+ {[%clk 0:01:50.8]} 36... Kh5 {[%clk 0:00:04.9]} 37. Qh7# {[%clk
0:01:52.1]} 1-0

[Event "*** Titled Tuesday 3|2 Blitz"]
[Site "Chess.com"]
[Date "2016.10.04"]
[Round "3"]
[White "Kubas1010"]
[Black "brightthunder"]
[Result "1-0"]
[WhiteElo "2466"]
[BlackElo "2380"]
[TimeControl "180+2"]
[EndTime "11:34:21 PDT"]
[Termination "Kubas1010 won by resignation"]

1. d4 {[%clk 0:03:01.9]} 1... Nf6 {[%clk 0:03:00.2]} 2. c4 {[%clk 0:03:02.5]}
2... e6 {[%clk 0:03:00.9]} 3. g3 {[%clk 0:03:02.8]} 3... c5 {[%clk 0:03:00.9]}
4. d5 {[%clk 0:02:57.6]} 4... exd5 {[%clk 0:03:02.8]} 5. cxd5 {[%clk 0:02:59.5]}
5... d6 {[%clk 0:03:04.3]} 6. Nc3 {[%clk 0:03:00.4]} 6... g6 {[%clk 0:03:05.2]}
7. Bg2 {[%clk 0:03:01.5]} 7... Bg7 {[%clk 0:03:06.7]} 8. Nf3 {[%clk 0:03:03.1]}
8... O-O {[%clk 0:03:08.2]} 9. O-O {[%clk 0:03:04]} 9... Re8 {[%clk 0:03:09.6]}
10. Bf4 {[%clk 0:03:03.6]} 10... Na6 {[%clk 0:03:06.9]} 11. Nd2 {[%clk
0:02:55.8]} 11... Nh5 {[%clk 0:02:55.9]} 12. Be3 {[%clk 0:02:55.9]} 12... Nc7
{[%clk 0:02:32.9]} 13. a4 {[%clk 0:02:46.5]} 13... b6 {[%clk 0:02:27.1]} 14. Nc4
{[%clk 0:02:46.7]} 14... Ba6 {[%clk 0:02:21.9]} 15. Qb3 {[%clk 0:02:44.6]} 15...
Bxc4 {[%clk 0:02:21.9]} 16. Qxc4 {[%clk 0:02:44.8]} 16... Rxe3 {[%clk
0:01:45.3]} 17. fxe3 {[%clk 0:02:44.4]} 17... Qe7 {[%clk 0:01:40.1]} 18. Qd3
{[%clk 0:02:18.4]} 18... a6 {[%clk 0:01:34.9]} 19. Rab1 {[%clk 0:02:14.5]} 19...
Re8 {[%clk 0:01:34.2]} 20. b4 {[%clk 0:02:08.4]} 20... c4 {[%clk 0:01:28.9]} 21.
Qxc4 {[%clk 0:01:48.7]} 21... Qxe3+ {[%clk 0:01:27.4]} 22. Kh1 {[%clk
0:01:49.1]} 22... Bxc3 {[%clk 0:01:21.4]} 23. Rb3 {[%clk 0:01:45.3]} 23... Nxg3+
{[%clk 0:01:13.7]} 24. hxg3 {[%clk 0:01:45.5]} 24... Qh6+ {[%clk 0:01:15.4]} 25.
Qh4 {[%clk 0:01:39.6]} 25... Qxh4+ {[%clk 0:00:59.5]} 26. gxh4 {[%clk
0:01:40.4]} 26... Bd2 {[%clk 0:00:54.2]} 27. e4 {[%clk 0:01:35.9]} 27... Re7
{[%clk 0:00:47.1]} 28. Rd1 {[%clk 0:01:27.5]} 28... Bf4 {[%clk 0:00:44.6]} 29.
Rc3 {[%clk 0:01:24.4]} 29... Be5 {[%clk 0:00:44.1]} 30. Rc6 {[%clk 0:01:24.8]}
30... b5 {[%clk 0:00:43.9]} 31. a5 {[%clk 0:01:19.8]} 31... Ne8 {[%clk
0:00:39.8]} 32. Rxa6 {[%clk 0:01:15.1]} 32... Nf6 {[%clk 0:00:41.2]} 33. Bf3
{[%clk 0:01:15.1]} 33... Bc3 {[%clk 0:00:39.5]} 34. Rxd6 {[%clk 0:01:10]} 34...
Bxb4 {[%clk 0:00:39.8]} 35. Rxf6 {[%clk 0:01:10]} 1-0

[Event "*** Titled Tuesday 3|2 Blitz"]
[Site "Chess.com"]
[Date "2016.10.04"]
[Round "3"]
[White "dusanacns"]
[Black "David_Klein"]
[Result "1-0"]
[WhiteElo "2552"]
[BlackElo "2384"]
[TimeControl "180+2"]
[EndTime "11:34:33 PDT"]
[Termination "dusanacns won by resignation"]

1. e4 {[%clk 0:03:01.9]} 1... e5 {[%clk 0:03:00.5]} 2. Nc3 {[%clk 0:03:02.5]}
2... Nf6 {[%clk 0:03:00.5]} 3. g3 {[%clk 0:03:04]} 3... d5 {[%clk 0:03:01]} 4.
exd5 {[%clk 0:03:05.9]} 4... Nxd5 {[%clk 0:03:02.9]} 5. Bg2 {[%clk 0:03:07.4]}
5... Nxc3 {[%clk 0:03:04.4]} 6. bxc3 {[%clk 0:03:09.3]} 6... Bd6 {[%clk
0:03:06]} 7. Nf3 {[%clk 0:03:10]} 7... O-O {[%clk 0:03:07.2]} 8. O-O {[%clk
0:03:11.3]} 8... Nc6 {[%clk 0:03:03.2]} 9. Rb1 {[%clk 0:03:12.2]} 9... Rb8
{[%clk 0:03:04]} 10. d4 {[%clk 0:03:01.7]} 10... exd4 {[%clk 0:03:04.7]} 11.
cxd4 {[%clk 0:03:02.8]} 11... Na5 {[%clk 0:03:04.3]} 12. Re1 {[%clk 0:02:55.6]}
12... b6 {[%clk 0:03:03.3]} 13. Ng5 {[%clk 0:02:51.9]} 13... h6 {[%clk
0:03:00.3]} 14. Ne4 {[%clk 0:02:52.4]} 14... Bb7 {[%clk 0:03:00.7]} 15. Qh5
{[%clk 0:02:47.4]} 15... f5 {[%clk 0:02:37.6]} 16. Nxd6 {[%clk 0:02:37.7]} 16...
Qxd6 {[%clk 0:02:30]} 17. Bf4 {[%clk 0:02:35.1]} 17... Qxd4 {[%clk 0:02:25.7]}
18. Bxc7 {[%clk 0:02:30.3]} 18... Bxg2 {[%clk 0:02:05.7]} 19. Bxb8 {[%clk
0:02:29.8]} 19... Ba8 {[%clk 0:01:58.3]} 20. Rbd1 {[%clk 0:02:22.3]} 20... Qc3
{[%clk 0:01:57.6]} 21. Re8 {[%clk 0:02:15.1]} 21... Rxe8 {[%clk 0:01:39.5]} 22.
Qxe8+ {[%clk 0:02:13.7]} 22... Kh7 {[%clk 0:01:41.2]} 23. Qe2 {[%clk 0:01:41.1]}
23... Qc8 {[%clk 0:00:28.6]} 24. Be5 {[%clk 0:01:03.8]} 24... Nc4 {[%clk
0:00:16.3]} 25. Bd4 {[%clk 0:01:00.6]} 25... Qc6 {[%clk 0:00:08.7]} 26. f3
{[%clk 0:01:01]} 26... Qg6 {[%clk 0:00:07.6]} 27. Qxc4 {[%clk 0:00:54.4]} 1-0